fUST/lending_fUST_20250716
["ID","MTS","AMOUNT","RATE_DAILY","PERIOD"]
[372541827,1752677483585,-228.54568651,0.00022191,2]
[372541828,1752677483596,-460.0,0.00022191,2]
[372541829,1752677483606,-460.0,0.00022191,2]
[372541830,1752677483618,-151.0,0.00022191,7]
[372541831,1752677483629,-151.0,0.00022191,7]
[372541832,1752677483640,-151.0,0.00022191,7]
[372541833,1752677483651,-194.390471,0.00022191,7]
[372541834,1752677483664,-194.390471,0.00022191,7]
[372541835,1752677483674,-151.0,0.00022191,7]
[372541836,1752677483686,-460.0,0.00022191,2]
[372541837,1752677483699,-460.0,0.00022191,2]
[372541838,1752677483710,-175.35,0.00022191,7]
[372541839,1752677483724,-175.35,0.00022191,7]
[372541840,1752677483735,-598.88,0.00022191,2]
[372541841,1752677483746,-1272.133395,0.00022191,7]
[372541842,1752677483757,-1272.133395,0.00022191,7]
[372541843,1752677483768,-268.312729,0.00022191,7]
[372541844,1752677483778,-268.312729,0.00022191,7]
[372541845,1752677483789,-460.0,0.00022191,2]
[372541846,1752677483800,-460.0,0.00022191,2]
[372541847,1752677483811,-460.0,0.00022191,2]
[372541848,1752677483822,-460.0,0.00022191,2]
[372541849,1752677483833,-460.0,0.00022191,2]
[372541850,1752677483843,-460.0,0.00022191,2]
[372541851,1752677483854,-151.0,0.00022191,7]
[372541852,1752677483864,-658.85,0.00022191,2]
[372541853,1752677483875,-173.823521,0.00022191,7]
[372541854,1752677483886,-173.823521,0.00022191,7]
[372541855,1752677483897,-599.35030948,0.00022191,2]
[372541856,1752677483908,-475.43,0.00022191,2]
[372541857,1752677483919,-961.83,0.00022191,2]
[372541858,1752677483930,-1083.23,0.00022191,2]
[372541859,1752677483940,-837.99,0.00022191,2]
[372541860,1752677483951,-1311.14,0.00022191,2]
[372541861,1752677483965,-258.530814,0.00022191,7]
[372541862,1752677483977,-1665.72,0.00022191,2]
[372541863,1752677483989,-258.530814,0.00022191,7]
[372541864,1752677483999,-669.53,0.00022191,2]
[372541865,1752677484010,-1125.79,0.00022191,2]
[372541866,1752677484022,-436.48,0.00022191,2]
[372541867,1752677484033,-1381.34,0.00022191,2]
[372541868,1752677484045,-613.33,0.00022191,2]
[372541869,1752677484056,-1663.21,0.00022191,2]
[372541870,1752677484068,-460.0,0.00022191,2]
[372541871,1752677484079,-460.0,0.00022191,2]
[372541872,1752677484092,-460.0,0.00022191,2]
[372541873,1752677484104,-567.23,0.00022191,2]
[372541874,1752677484116,-500.0,0.00022191,2]
[372541875,1752677484128,-1191.904355,0.00022191,7]
[372541876,1752677484141,-1191.904355,0.00022191,7]
[372541877,1752677484154,-460.0,0.00022191,2]
[372541878,1752677484166,-460.0,0.00022191,2]
[372541879,1752677484179,-634.21,0.00022191,2]
[372541880,1752677484409,-460.0,0.00022191,2]
[372541881,1752677484419,-6222.19,0.00022191,2]
[372541882,1752677484428,-494.3,0.00022191,2]
[372541883,1752677484439,-460.0,0.00022191,2]
[372541884,1752677484448,-701.57,0.00022191,2]
[372541885,1752677484457,-460.0,0.00022191,2]
[372541886,1752677484469,-2579.0,0.00022191,2]
[372541887,1752677484480,-1587.47,0.00022191,2]
[372541888,1752677484489,-510.78,0.00022191,2]
[372541889,1752677484499,-12073.92,0.00022191,2]
[372541890,1752677484509,-460.0,0.00022191,2]
[372541891,1752677484518,-631.2,0.00022191,2]
[372541892,1752677484528,-1556.75,0.00022191,2]
[372541893,1752677484538,-536.62,0.00022191,2]
[372541894,1752677484550,-460.0,0.00022191,2]
[372541895,1752677484561,-964.18,0.00022191,2]
[372541896,1752677484570,-1245.03,0.00022191,2]
[372541897,1752677484581,-460.0,0.00022191,2]
[372541898,1752677484591,-15318.54,0.00022191,2]
[372541899,1752677484601,-905.4,0.00022191,2]
[372541900,1752677484610,-4111.22,0.00022191,2]
[372541901,1752677484620,-460.0,0.00022191,2]
[372541902,1752677484631,-460.0,0.00022191,2]
[372541903,1752677484642,-3044.67,0.00022191,2]
[372541904,1752677484652,-4935.17,0.00022191,2]
[372541905,1752677484663,-1948.0,0.00022191,2]
[372541906,1752677484681,-460.0,0.00022191,2]
[372541907,1752677484694,-460.0,0.00022191,2]
[372541908,1752677484704,-498.37,0.00022191,2]
[372541909,1752677484715,-460.0,0.00022191,2]
[372541910,1752677484724,-460.0,0.00022191,2]
[372541911,1752677484734,-609.11,0.00022191,2]
[372541912,1752677484744,-460.0,0.00022191,2]
[372541913,1752677484754,-1030.45,0.00022191,2]
[372541914,1752677484764,-1104.85,0.00022191,2]
[372541915,1752677484774,-460.0,0.00022191,2]
[372541916,1752677484785,-670.83,0.00022191,2]
[372541917,1752677484796,-10161.59,0.00022191,2]
[372541918,1752677484807,-7778.76,0.00022191,2]
[372541919,1752677484816,-996.57,0.00022191,2]
[372541920,1752677484826,-530.41,0.00022191,2]
[372541921,1752677484836,-4761.84,0.00022191,2]
[372541922,1752677484847,-1421.14,0.00022191,2]
[372541923,1752677484856,-460.0,0.00022191,2]
[372541924,1752677484866,-460.0,0.00022191,2]
[372541925,1752677484876,-6063.24,0.00022191,2]
[372541926,1752677484892,-667.5,0.00022191,2]
[372541927,1752677484906,-2283.88,0.00022191,2]
[372541928,1752677484916,-460.0,0.00022191,2]
[372541929,1752677484926,-734.47,0.00022191,2]
[372541930,1752677484935,-185.54,0.00022191,2]
[372541931,1752677484945,-651.31,0.00022191,2]
[372541932,1752677484954,-1962.74,0.00022191,2]
[372541933,1752677484965,-946.28,0.00022191,2]
[372541934,1752677484978,-3975.19,0.00022191,2]
[372541935,1752677484987,-532.35,0.00022191,2]
[372541936,1752677484998,-493.86,0.00022191,2]
[372541937,1752677485007,-460.0,0.00022191,2]
[372541938,1752677485018,-735.63,0.00022191,2]
[372541939,1752677485029,-1763.8,0.00022191,2]
[372541940,1752677485039,-460.0,0.00022191,2]
[372541941,1752677485048,-1135.47,0.00022191,2]
[372541942,1752677485058,-460.0,0.00022191,2]
[372541943,1752677485069,-843.83,0.00022191,2]
[372541944,1752677485078,-1241.01,0.00022191,2]
[372541945,1752677485088,-6986.13,0.00022191,2]
[372541946,1752677485098,-312.03,0.00022191,2]
[372541947,1752677485108,-2070.57,0.00022191,2]
[372541948,1752677485118,-185.64945012,0.00022191,2]
[372541949,1752677485128,-1038.6,0.00022191,2]
[372541950,1752677485137,-5915.89,0.00022191,2]
[372541951,1752677485147,-6018.33,0.00022191,2]
[372541952,1752677485157,-845.32,0.00022191,2]
[372541953,1752677485167,-492.73,0.00022191,2]
[372541954,1752677485176,-460.0,0.00022191,2]
[372541955,1752677485186,-858.64,0.00022191,2]
[372541956,1752677485195,-257.92,0.00022191,2]
[372541957,1752677485205,-518.95241946,0.00022191,2]
[372541958,1752677485215,-1500.0,0.00022192,2]
[372541959,1752677485224,-282.0,0.00022192,7]
[372541960,1752677485234,-19293.48144392,0.000222,2]
[372541961,1752677485244,-330.6,0.00022218,5]
[372541962,1752677485254,-879.0,0.00022222,2]
[372541963,1752677485263,-25000.0,0.00022258,2]
[372541964,1752677485273,-195.485999,0.00022258,7]
[372541965,1752677485283,-195.486007,0.00022258,7]
[372541966,1752677485292,-656.64663739,0.000223,2]
[372541967,1752677485302,-160.0,0.00022307,7]
[372541968,1752677485311,-7885.54227734,0.00022314,7]
[372541969,1752677485321,-52950.13438887,0.000224,2]
[372541970,1752677485331,-246.49242,0.000224,7]
[372541971,1752677485341,-246.49242,0.000224,7]
[372541972,1752677485351,-337.371888,0.000224,7]
[372541973,1752677485360,-530.902226,0.000224,7]
[372541974,1752677485370,-530.902226,0.000224,7]
[372541975,1752677485379,-337.371888,0.000224,7]
[372541976,1752677485389,-5486.86997907,0.000224,7]
[372541977,1752677485399,-990.281603,0.000224,7]
[372541978,1752677485409,-990.281603,0.000224,7]
[372541979,1752677485418,-153.0,0.00022438,2]
[372541980,1752677485428,-153.0,0.00022438,2]
[372541981,1752677485437,-153.0,0.00022438,2]
[372541982,1752677485447,-153.0,0.00022438,2]
[372541983,1752677485456,-576.8651031,0.00022438,2]
[372541984,1752677485469,-576.8651031,0.00022438,2]
[372541985,1752677485479,-576.8651031,0.00022438,2]
[372541986,1752677485488,-576.8651031,0.00022438,2]
[372541987,1752677485497,-576.8651031,0.00022438,2]
[372541988,1752677485507,-318.772522,0.00022438,2]
[372541989,1752677485517,-576.8651031,0.00022438,2]
[372541990,1752677485526,-353.5792447,0.00022438,2]
[372541991,1752677485536,-159.7314836,0.00022438,2]
[372541992,1752677485546,-178.021619,0.00022438,2]
[372541993,1752677485555,-576.8651031,0.00022438,2]
[372541994,1752677485565,-178.021619,0.00022438,2]
[372541995,1752677485574,-576.8651031,0.00022438,2]
[372541996,1752677485583,-159.7314836,0.00022438,2]
[372541997,1752677485593,-178.021619,0.00022438,2]
[372541998,1752677485602,-153.0,0.00022438,2]
[372541999,1752677485612,-159.7314836,0.00022438,2]
[372542000,1752677485622,-576.8651031,0.00022438,2]
[372542001,1752677485631,-576.8651031,0.00022438,2]
[372542002,1752677485640,-178.021619,0.00022438,2]
[372542003,1752677485650,-159.7314836,0.00022438,2]
[372542004,1752677485659,-159.7314836,0.00022438,2]
[372542005,1752677485669,-178.021619,0.00022438,2]
[372542006,1752677485678,-153.0,0.00022438,2]
[372542007,1752677485688,-576.8651031,0.00022438,2]
[372542008,1752677485697,-159.7314836,0.00022438,2]
[372542009,1752677485707,-178.021619,0.00022438,2]
[372542010,1752677485718,-178.021619,0.00022438,2]
[372542011,1752677485728,-153.0,0.00022438,2]
[372542012,1752677485738,-576.8651031,0.00022438,2]
[372542013,1752677485747,-159.7314836,0.00022438,2]
[372542014,1752677485757,-153.0,0.00022438,2]
[372542015,1752677485766,-159.7314836,0.00022438,2]
[372542016,1752677485775,-178.021619,0.00022438,2]
[372542017,1752677485784,-576.8651031,0.00022438,2]
[372542018,1752677485794,-576.8651031,0.00022438,2]
[372542019,1752677485803,-153.0,0.00022438,2]
[372542020,1752677485813,-159.7314836,0.00022438,2]
[372542021,1752677485822,-178.021619,0.00022438,2]
[372542022,1752677485832,-153.0,0.00022438,2]
[372542023,1752677485841,-178.021619,0.00022438,2]
[372542024,1752677485852,-159.7314836,0.00022438,2]
[372542025,1752677485862,-576.8651031,0.00022438,2]
[372542026,1752677485872,-159.7314836,0.00022438,2]
[372542027,1752677485882,-153.0,0.00022438,2]
[372542028,1752677485891,-153.0,0.00022438,2]
[372542029,1752677485901,-159.7314836,0.00022438,2]
[372542030,1752677485911,-178.021619,0.00022438,2]
[372542031,1752677485920,-319.3168912,0.00022438,2]
[372542032,1752677485930,-178.021619,0.00022438,2]
[372542033,1752677485939,-153.0,0.00022438,2]
[372542034,1752677485948,-153.0,0.00022438,2]
[372542035,1752677485958,-175.946076,0.00022438,2]
[372542036,1752677485970,-153.0,0.00022438,2]
[372542037,1752677485982,-153.0,0.00022438,2]
[372542038,1752677485991,-153.0,0.00022438,2]
[372542039,1752677486000,-381.526955,0.00022461,7]
[372542040,1752677486011,-381.526955,0.00022461,7]
[372542041,1752677486020,-151.0,0.00022461,3]
[372542042,1752677486030,-151.0,0.00022461,7]
[372542043,1752677486040,-151.0,0.00022461,7]
[372542044,1752677486051,-151.0,0.00022461,7]
[372542045,1752677486061,-264.043326,0.00022461,7]
[372542046,1752677486072,-483.51673,0.00022461,7]
[372542047,1752677486082,-483.516735,0.00022461,7]
[372542048,1752677486091,-151.0,0.00022461,7]
[372542049,1752677486101,-151.0,0.00022461,7]
[372542050,1752677486110,-158.891984,0.00022461,7]
[372542051,1752677486120,-151.0,0.00022461,7]
[372542052,1752677486130,-194.390471,0.00022461,7]
[372542053,1752677486139,-194.390471,0.00022461,7]
[372542054,1752677486153,-151.0,0.00022461,7]
[372542055,1752677486170,-175.35,0.00022461,7]
[372542056,1752677486179,-175.35,0.00022461,7]
[372542057,1752677486190,-1272.133395,0.00022461,7]
[372542058,1752677486200,-1272.133395,0.00022461,7]
[372542059,1752677486210,-268.312729,0.00022461,7]
[372542060,1752677486222,-268.312729,0.00022461,7]
[372542061,1752677486231,-381.526955,0.00022465,7]
[372542062,1752677486241,-381.526955,0.00022465,7]
[372542063,1752677486251,-460.0,0.00022465,2]
[372542064,1752677486260,-460.0,0.00022465,2]
[372542065,1752677486270,-460.0,0.00022465,2]
[372542066,1752677486280,-460.0,0.00022465,2]
[372542067,1752677486289,-460.0,0.00022465,2]
[372542068,1752677486299,-267.75515917,0.00022465,2]
[372542069,1752677486309,-460.0,0.00022465,2]
[372542070,1752677486319,-460.0,0.00022465,2]
[372542071,1752677486329,-460.0,0.00022465,2]
[372542072,1752677486338,-151.0,0.00022465,7]
[372542073,1752677486348,-658.85,0.00022465,2]
[372542074,1752677486358,-173.823521,0.00022465,7]
[372542075,1752677486367,-173.823528,0.00022465,7]
[372542076,1752677486378,-475.43,0.00022465,2]
[372542077,1752677486387,-961.83,0.00022465,2]
[372542078,1752677486397,-1083.23,0.00022465,2]
[372542079,1752677486406,-837.99,0.00022465,2]
[372542080,1752677486416,-1311.14,0.00022465,2]
[372542081,1752677486426,-258.530814,0.00022465,7]
[372542082,1752677486435,-1665.72,0.00022465,2]
[372542083,1752677486445,-258.530819,0.00022465,7]
[372542084,1752677486454,-669.53,0.00022465,2]
[372542085,1752677486464,-1125.79,0.00022465,2]
[372542086,1752677486475,-1381.34,0.00022465,2]
[372542087,1752677486489,-613.33,0.00022465,2]
[372542088,1752677486500,-1663.21,0.00022465,2]
[372542089,1752677486510,-460.0,0.00022465,2]
[372542090,1752677486520,-300.15,0.00022465,2]
[372542091,1752677486531,-356.79,0.00022465,2]
[372542092,1752677486541,-567.23,0.00022465,2]
[372542093,1752677486551,-500.0,0.00022465,2]
[372542094,1752677486560,-1191.904355,0.00022465,7]
[372542095,1752677486570,-1191.904347,0.00022465,7]
[372542096,1752677486579,-460.0,0.00022465,2]
[372542097,1752677486589,-446.66711747,0.00022465,2]
[372542098,1752677486598,-634.21,0.00022465,2]
[372542099,1752677486609,-460.0,0.00022465,2]
[372542100,1752677486618,-6222.19,0.00022465,2]
[372542101,1752677486629,-494.3,0.00022465,2]
[372542102,1752677486638,-460.0,0.00022465,2]
[372542103,1752677486647,-701.57,0.00022465,2]
[372542104,1752677486657,-460.0,0.00022465,2]
[372542105,1752677486666,-2579.0,0.00022465,2]
[372542106,1752677486676,-1587.47,0.00022465,2]
[372542107,1752677486685,-510.78,0.00022465,2]
[372542108,1752677486694,-12073.92,0.00022465,2]
[372542109,1752677486703,-549.0491208,0.00022465,2]
[372542110,1752677486713,-631.2,0.00022465,2]
[372542111,1752677486724,-1556.75,0.00022465,2]
[372542112,1752677486734,-536.62,0.00022465,2]
[372542113,1752677486743,-460.0,0.00022465,2]
[372542114,1752677486754,-964.18,0.00022465,2]
[372542115,1752677486763,-1245.03,0.00022465,2]
[372542116,1752677486772,-460.0,0.00022465,2]
[372542117,1752677486782,-15318.54,0.00022465,2]
[372542118,1752677486792,-905.4,0.00022465,2]
[372542119,1752677486801,-4111.22,0.00022465,2]
[372542120,1752677486810,-460.0,0.00022465,2]
[372542121,1752677486820,-460.0,0.00022465,2]
[372542122,1752677486830,-3044.67,0.00022465,2]
[372542123,1752677486839,-4935.17,0.00022465,2]
[372542124,1752677486848,-1948.0,0.00022465,2]
[372542125,1752677486858,-460.0,0.00022465,2]
[372542126,1752677486868,-460.0,0.00022465,2]
[372542127,1752677486878,-498.37,0.00022465,2]
[372542128,1752677486888,-460.0,0.00022465,2]
[372542129,1752677486897,-372.4160198,0.00022465,2]
[372542130,1752677486907,-609.11,0.00022465,2]
[372542131,1752677486917,-460.0,0.00022465,2]
[372542132,1752677486926,-1030.45,0.00022465,2]
[372542133,1752677486935,-1104.85,0.00022465,2]
[372542134,1752677486945,-460.0,0.00022465,2]
[372542135,1752677486955,-670.83,0.00022465,2]
[372542136,1752677486964,-10161.59,0.00022465,2]
[372542137,1752677486982,-7778.76,0.00022465,2]
[372542138,1752677486992,-996.57,0.00022465,2]
[372542139,1752677487002,-530.41,0.00022465,2]
[372542140,1752677487011,-4761.84,0.00022465,2]
[372542141,1752677487022,-1421.14,0.00022465,2]
[372542142,1752677487032,-460.0,0.00022465,2]
[372542143,1752677487042,-460.0,0.00022465,2]
[372542144,1752677487052,-6063.24,0.00022465,2]
[372542145,1752677487062,-667.5,0.00022465,2]
[372542146,1752677487071,-2283.88,0.00022465,2]
[372542147,1752677487081,-460.0,0.00022465,2]
[372542148,1752677487090,-734.47,0.00022465,2]
[372542149,1752677487100,-651.31,0.00022465,2]
[372542150,1752677487110,-1962.74,0.00022465,2]
[372542151,1752677487120,-946.28,0.00022465,2]
[372542152,1752677487129,-3975.19,0.00022465,2]
[372542153,1752677487139,-532.35,0.00022465,2]
[372542154,1752677487148,-493.86,0.00022465,2]
[372542155,1752677487158,-460.0,0.00022465,2]
[372542156,1752677487167,-735.63,0.00022465,2]
[372542157,1752677487177,-1763.8,0.00022465,2]
[372542158,1752677487187,-214.06596458,0.00022465,2]
[372542159,1752677487196,-1135.47,0.00022465,2]
[372542160,1752677487207,-460.0,0.00022465,2]
[372542161,1752677487219,-1241.01,0.00022465,2]
[372542162,1752677487230,-843.83,0.00022465,2]
[372542163,1752677487240,-6986.13,0.00022465,2]
[372542164,1752677487250,-2070.57,0.00022465,2]
[372542165,1752677487260,-1038.6,0.00022465,2]
[372542166,1752677487269,-5915.89,0.00022465,2]
[372542167,1752677487279,-6018.33,0.00022465,2]
[372542168,1752677487289,-845.32,0.00022465,2]
[372542169,1752677487300,-492.73,0.00022465,2]
[372542170,1752677487310,-460.0,0.00022465,2]
[372542171,1752677487319,-858.64,0.00022465,2]
[372542172,1752677487329,-1500.0,0.00022466,2]
[372542173,1752677487339,-300.0,0.00022466,2]
[372542174,1752677487349,-250.0,0.00022466,2]
[372542175,1752677487359,-7885.54227734,0.00022486,7]
[372542176,1752677487368,-1493819.34797806,0.0002249,7]
[372542177,1752677487709,-750433.3813944,0.0002249,7]
[372542178,1752677487723,-151.0,0.0002249,7]
[372542179,1752677487733,-151.0,0.0002249,7]
[372542180,1752677487743,-194.390471,0.0002249,7]
[372542181,1752677487753,-194.390471,0.0002249,7]
[372542182,1752677487762,-151.0,0.0002249,7]
[372542183,1752677487772,-175.35,0.0002249,7]
[372542184,1752677487781,-175.35,0.0002249,7]
[372542185,1752677487791,-1272.133395,0.0002249,7]
[372542186,1752677487800,-268.312729,0.0002249,7]
[372542187,1752677487810,-1272.133395,0.0002249,7]
[372542188,1752677487819,-268.312729,0.0002249,7]
[372542189,1752677487829,-246.49242,0.0002249,7]
[372542190,1752677487838,-246.492424,0.0002249,7]
[372542191,1752677487847,-337.371888,0.0002249,7]
[372542192,1752677487857,-530.902226,0.0002249,7]
[372542193,1752677487867,-530.902223,0.0002249,7]
[372542194,1752677487877,-337.371883,0.0002249,7]
[372542195,1752677487887,-990.281603,0.0002249,7]
[372542196,1752677487897,-990.281603,0.0002249,7]
[372542197,1752677487906,-1006.41115469,0.000225,2]
[372542198,1752677487916,-1000.0,0.000225,2]
[372542199,1752677487926,-1000.0,0.00022521,2]
[372542200,1752677487935,-1000.0,0.00022521,2]
[372542201,1752677487945,-152.0,0.00022527,3]
[372542202,1752677487955,-152.0,0.00022527,3]
[372542203,1752677487968,-152.0,0.00022527,3]
[372542204,1752677487980,-152.0,0.00022527,3]
[372542205,1752677487990,-324.0,0.00022527,3]
[372542206,1752677488000,-152.0,0.00022527,3]
[372542207,1752677488010,-324.0,0.00022527,3]
[372542208,1752677488019,-324.0,0.00022527,3]
[372542209,1752677488030,-324.0,0.00022527,3]
[372542210,1752677488042,-324.0,0.00022527,3]
[372542211,1752677488053,-324.0,0.00022527,3]
[372542212,1752677488063,-324.0,0.00022527,3]
[372542213,1752677488072,-324.0,0.00022527,3]
[372542214,1752677488083,-152.0,0.00022527,3]
[372542215,1752677488093,-324.0,0.00022527,3]
[372542216,1752677488103,-152.0,0.00022527,3]
[372542217,1752677488112,-324.0,0.00022527,3]
[372542218,1752677488122,-152.0,0.00022527,3]
[372542219,1752677488131,-324.0,0.00022527,3]
[372542220,1752677488140,-152.0,0.00022527,3]
[372542221,1752677488151,-324.0,0.00022527,3]
[372542222,1752677488160,-152.0,0.00022527,3]
[372542223,1752677488171,-324.0,0.00022527,3]
[372542224,1752677488183,-152.0,0.00022527,3]
[372542225,1752677488193,-152.0,0.00022527,3]
[372542226,1752677488203,-152.0,0.00022527,3]
[372542227,1752677488212,-152.0,0.00022527,3]
[372542228,1752677488224,-152.0,0.00022527,3]
[372542229,1752677488233,-152.0,0.00022527,3]
[372542230,1752677488243,-152.0,0.00022527,3]
[372542231,1752677488252,-152.0,0.00022527,3]
[372542232,1752677488262,-152.0,0.00022527,3]
[372542233,1752677488271,-152.0,0.00022527,3]
[372542234,1752677488281,-152.0,0.00022527,3]
[372542235,1752677488290,-152.0,0.00022527,3]
[372542236,1752677488300,-152.0,0.00022527,3]
[372542237,1752677488310,-152.0,0.00022527,3]
[372542238,1752677488319,-324.0,0.00022527,3]
[372542239,1752677488329,-152.0,0.00022527,3]
[372542240,1752677488339,-324.0,0.00022527,3]
[372542241,1752677488349,-152.0,0.00022527,3]
[372542242,1752677488358,-152.0,0.00022527,3]
[372542243,1752677488369,-152.0,0.00022527,3]
[372542244,1752677488380,-324.0,0.00022527,3]
[372542245,1752677488391,-152.0,0.00022527,3]
[372542246,1752677488400,-152.0,0.00022527,3]
[372542247,1752677488410,-324.0,0.00022527,3]
[372542248,1752677488419,-152.0,0.00022527,3]
[372542249,1752677488429,-324.0,0.00022527,3]
[372542250,1752677488439,-324.0,0.00022527,3]
[372542251,1752677488448,-152.0,0.00022527,3]
[372542252,1752677488458,-324.0,0.00022527,3]
[372542253,1752677488470,-324.0,0.00022527,3]
[372542254,1752677488479,-152.0,0.00022527,3]
[372542255,1752677488489,-324.0,0.00022527,3]
[372542256,1752677488499,-184.99541613,0.00022527,3]
[372542257,1752677488509,-152.0,0.00022527,3]
[372542258,1752677488519,-152.0,0.00022527,3]
[372542259,1752677488529,-152.0,0.00022527,3]
[372542260,1752677488538,-152.0,0.00022527,3]
[372542261,1752677488548,-152.0,0.00022527,3]
[372542262,1752677488558,-152.0,0.00022527,3]
[372542263,1752677488567,-152.0,0.00022527,3]
[372542264,1752677488577,-152.0,0.00022527,3]
[372542265,1752677488586,-152.0,0.00022527,3]
[372542266,1752677488596,-159.40812346,0.00022527,3]
[372542267,1752677488605,-660.0,0.00022531,2]
[372542268,1752677488615,-2360.18182219,0.00022555,2]
[372542269,1752677488628,-460.0,0.00022555,2]
[372542270,1752677488648,-224.08,0.0002088,2]
[372542271,1752677488658,-2424.68458164,0.00022555,2]
[372542272,1752677488669,-330.6,0.00022566,5]
[372542273,1752677488679,-653.43475098,0.00022572,2]
[372542274,1752677488691,-688.20098539,0.00022572,2]
[372542275,1752677488701,-347.702002,0.000226,7]
[372542276,1752677488711,-642.0,0.000226,2]
[372542277,1752677488723,-5.31371795,0.00022602,2]
[372542278,1752677489087,-347.42058902,0.00019078,2]
[372542279,1752677489097,-0.63360421,0.00019178,2]
[372542280,1752677489121,-459.36639579,0.00019178,2]
[372542281,1752677489132,-460.0,0.00019178,2]
[372542282,1752677489141,-1916.55,0.00019452,2]
[372542283,1752677489150,-460.0,0.00019452,2]
[372542284,1752677489160,-460.0,0.00019452,2]
[372542285,1752677489169,-1916.55,0.00019726,2]
[372542286,1752677489179,-460.0,0.00019726,2]
[372542287,1752677489188,-460.0,0.00019726,2]
[372542288,1752677489197,-1916.55,0.0002,2]
[372542289,1752677489207,-460.0,0.0002,2]
[372542290,1752677489216,-460.0,0.0002,2]
[372542291,1752677489228,-151.0,0.00020066,2]
[372542292,1752677489237,-1916.55,0.00020273,2]
[372542293,1752677489247,-460.0,0.00020273,2]
[372542294,1752677489256,-171.25,0.00020273,2]
[372542295,1752677489266,-1916.55,0.00020547,2]
[372542296,1752677489275,-1916.55,0.00020821,2]
[372542297,1752677489286,-969.88,0.00021095,2]
[372542298,1752677489295,-1916.55,0.00021095,2]
[372542299,1752677489305,-969.88,0.00021369,2]
[372542300,1752677489314,-1916.55,0.00021369,2]
[372542301,1752677489323,-969.88,0.00021643,2]
[372542302,1752677489333,-969.88,0.00021917,2]
[372542303,1752677489342,-969.88,0.00022191,2]
[372542304,1752677489352,-969.88,0.00022465,2]
[372542305,1752677489361,-1994.68628205,0.00022602,2]
[372542306,1752677489370,-475.260791,0.00022603,2]
[372542307,1752677489379,-400.0,0.00022603,2]
[372542308,1752677489389,-151.0,0.00022617,7]
[372542309,1752677489398,-160.0,0.00022636,8]
[372542310,1752677489408,-154.0,0.00022639,3]
[372542311,1752677489417,-154.0,0.00022639,3]
[372542312,1752677489426,-154.0,0.00022639,3]
[372542313,1752677489436,-324.0,0.00022639,3]
[372542314,1752677489445,-183.67082305,0.00022639,3]
[372542315,1752677489455,-211.04550312,0.00022639,3]
[372542316,1752677489465,-202.04469531,0.00022639,3]
[372542317,1752677489477,-160.0,0.00022639,3]
[372542318,1752677489487,-162.75069365,0.00022639,3]
[372542319,1752677489495,-1751.0,0.00022639,3]
[372542320,1752677489504,-1751.0,0.00022639,3]
[372542321,1752677489513,-1751.0,0.00022639,3]
[372542322,1752677489522,-1751.0,0.00022639,3]
[372542323,1752677489532,-1751.0,0.00022639,3]
[372542324,1752677489542,-1751.0,0.00022639,3]
[372542325,1752677489551,-153.0,0.00022639,3]
[372542326,1752677489560,-172.0,0.00022639,3]